fUST/lending_fUST_20250823
["ID","MTS","AMOUNT","RATE_DAILY","PERIOD"]
[381027655,1755955841667,-181.859024,0.00026908,7]
[381027657,1755955841676,-181.859024,0.00026908,7]
[381027659,1755955841685,-181.859024,0.00026908,7]
[381027661,1755955841695,-151.0,0.00026908,7]
[381027663,1755955841704,-151.0,0.00026908,7]
[381027665,1755955841713,-151.0,0.00026908,7]
[381027667,1755955841722,-151.0,0.00026908,7]
[381027669,1755955841731,-151.0,0.00026908,7]
[381027671,1755955841740,-151.0,0.00026908,7]
[381027673,1755955841749,-151.0,0.00026908,7]
[381027675,1755955841758,-160.0,0.00026924,2]
[381027677,1755955841767,-232.37252479,0.00026972,2]
[381027679,1755955841777,-160.37387719,0.00026973,2]
[381027681,1755955841786,-500.0,0.00026973,2]
[381027683,1755955841795,-500.0,0.00026973,2]
[381027685,1755955841804,-500.0,0.00026973,2]
[381027687,1755955841814,-500.0,0.00026973,2]
[381027689,1755955841824,-160.37492634,0.00026973,2]
[381027691,1755955841833,-500.0,0.00026973,2]
[381027693,1755955841842,-500.0,0.00026973,2]
[381027695,1755955841854,-157.34531297,0.00026973,2]
[381027697,1755955841863,-158.76511294,0.00026973,2]
[381027699,1755955841873,-500.0,0.00026973,2]
[381027701,1755955841882,-160.0,0.00026974,2]
[381027703,1755955841892,-217.0334113,0.00026974,2]
[381027705,1755955841901,-529.05847148,0.00026974,2]
[381027707,1755955841910,-376.14580871,0.00026974,2]
[381027709,1755955841919,-160.0,0.00026974,2]
[381027711,1755955841929,-417.15472785,0.00026974,2]
[381027713,1755955841939,-844.50316758,0.00026974,2]
[381027715,1755955841948,-4075.01567754,0.0002698,2]
[381027717,1755955841957,-191.58580352,0.0002698,2]
[381027719,1755955841966,-21533.99999905,0.00026998,2]
[381027721,1755955841976,-152.56262,0.00027001,7]
[381027723,1755955841985,-151.0,0.00027001,7]
[381027725,1755955841995,-151.0,0.00027001,7]
[381027726,1755955842003,-151.0,0.00027001,7]
[381027728,1755955842013,-1280.34734913,0.00027001,5]
[381027730,1755955842022,-151.0,0.00027003,7]
[381027732,1755955842031,-151.0,0.00027003,7]
[381027734,1755955842041,-151.64,0.00027003,7]
[381027735,1755955842050,-6079.11786273,0.00027009,2]
[381027736,1755955842059,-4026.08,0.000273,7]
[381027737,1755955842069,-329.35962668,0.00027321,2]
[381027738,1755955842078,-501.33070003,0.00027321,2]
[381027739,1755955842088,-908.58647314,0.00027321,2]
[381027740,1755955842097,-500.0,0.00027321,2]
[381027741,1755955842106,-500.0,0.00027321,2]
[381027742,1755955842115,-500.0,0.00027321,2]
[381027743,1755955842124,-1000.0,0.00027321,2]
[381027744,1755955842133,-504.17753169,0.00027321,2]
[381027745,1755955842143,-448.66938723,0.00027321,2]
[381027746,1755955842152,-1000.0,0.00027321,2]
[381027747,1755955842161,-500.0,0.00027321,2]
[381027748,1755955842171,-500.88491111,0.00027321,2]
[381027749,1755955842180,-500.0,0.00027321,2]
[381027750,1755955842191,-500.0,0.00027321,2]
[381027751,1755955842200,-500.0,0.00027321,2]
[381027752,1755955842209,-500.0,0.00027321,2]
[381027753,1755955842218,-500.0,0.00027321,2]
[381027754,1755955842228,-1001.79688721,0.00027321,2]
[381027755,1755955842237,-500.0,0.00027379,2]
[381027756,1755955842246,-153.0,0.00027444,2]
[381027757,1755955842255,-153.0,0.00027444,2]
[381027758,1755955842265,-153.0,0.00027444,2]
[381027759,1755955842274,-153.0,0.00027444,2]
[381027761,1755955842283,-8274.35486872,0.00027447,2]
[381027763,1755955842293,-158.521302,0.00027496,2]
[381027765,1755955842303,-1034.66495259,0.00027521,5]
[381027769,1755955842311,-1000.0,0.00027521,5]
[381027771,1755955842322,-1001.27885822,0.00027521,5]
[381027774,1755955842332,-1000.0,0.00027521,5]
[381027776,1755955842341,-500.0,0.00027521,5]
[381027778,1755955842350,-500.0,0.00027521,5]
[381027780,1755955842360,-158.521302,0.00027653,20]
[381027782,1755955842369,-221.0329258,0.00027669,8]
[381027784,1755955842379,-500.0,0.0002785,2]
[381027786,1755955842388,-10796.51332421,0.00027885,2]
[381027788,1755955842398,-6172.06823438,0.00027885,2]
[381027790,1755955842408,-1160.0,0.00027896,2]
[381027792,1755955842419,-417.15472785,0.00028,10]
[381027794,1755955842428,-178.2630597,0.00028285,2]
[381027796,1755955842438,-151.0,0.00028306,2]
[381027798,1755955842448,-151.0,0.00028306,2]
[381027800,1755955842457,-151.0,0.00028306,2]
[381027802,1755955842467,-151.0,0.00028306,2]
[381027804,1755955842476,-151.0,0.00028306,2]
[381027806,1755955842486,-500.0,0.00028306,2]
[381027808,1755955842496,-500.0,0.00028306,2]
[381027810,1755955842506,-151.28036725,0.00028306,2]
[381027812,1755955842516,-198.0,0.00028306,2]
[381027814,1755955842525,-151.0,0.00028306,2]
[381027816,1755955842535,-151.0,0.00028306,2]
[381027818,1755955842549,-223.24465563,0.0002837,2]
[381027820,1755955842558,-151.0,0.0002837,2]
[381027822,1755955842570,-610.28091887,0.0002837,2]
[381027824,1755955842580,-3000.0,0.0002838,2]
[381027826,1755955842590,-3000.0,0.0002839,2]
[381027828,1755955842600,-3000.0,0.000284,2]
[381027830,1755955842610,-295.0,0.0002841,7]
[381027832,1755955842620,-3000.0,0.0002841,2]
[381027834,1755955842630,-3000.0,0.0002842,2]
[381027836,1755955842639,-4483.155636,0.0002843,2]
[381027838,1755955842649,-151.0,0.0002843,7]
[381027840,1755955842658,-151.0,0.0002843,7]
[381027842,1755955842668,-151.0,0.0002843,7]
[381027844,1755955842677,-514.0,0.00028489,2]
[381027846,1755955842686,-1698.15,0.00028493,8]
[381027848,1755955842700,-157.0,0.000285,30]
[381027850,1755955842709,-295.0,0.00028547,2]
[381027852,1755955842720,-151.0,0.0002855,7]
[381027854,1755955842729,-151.0,0.0002855,7]
[381027856,1755955842739,-151.0,0.0002855,7]
[381027858,1755955842749,-335.129146,0.0002855,7]
[381027860,1755955842758,-151.0,0.0002855,7]
[381027862,1755955842768,-151.0,0.0002855,7]
[381027864,1755955842777,-335.129146,0.0002855,7]
[381027866,1755955842787,-151.0,0.0002855,7]
[381027868,1755955842796,-323.623482,0.0002855,7]
[381027871,1755955842806,-323.623482,0.0002855,7]
[381027872,1755955842816,-335.129146,0.0002855,7]
[381027875,1755955842828,-481.941728,0.0002855,7]
[381027877,1755955842838,-151.0,0.0002855,7]
[381027879,1755955842847,-323.623482,0.0002855,7]
[381027881,1755955842856,-335.129146,0.0002855,7]
[381027883,1755955842865,-481.941728,0.0002855,7]
[381027885,1755955842875,-323.623482,0.0002855,7]
[381027887,1755955842885,-481.941728,0.0002855,7]
[381027889,1755955842894,-644.125751,0.0002855,7]
[381027891,1755955842904,-481.941728,0.0002855,7]
[381027893,1755955842914,-151.0,0.0002855,7]
[381027894,1755955842923,-644.125751,0.0002855,7]
[381027896,1755955842933,-644.125751,0.0002855,7]
[381027898,1755955842942,-644.125751,0.0002855,7]
[381027900,1755955842952,-151.0,0.0002855,7]
[381027902,1755955842962,-151.0,0.0002855,7]
[381027905,1755955842972,-151.0,0.0002855,7]
[381027907,1755955842982,-151.0,0.0002855,7]
[381027908,1755955842992,-167.45745,0.0002855,7]
[381027910,1755955843001,-167.45745,0.0002855,7]
[381027913,1755955843012,-167.45745,0.0002855,7]
[381027915,1755955843023,-167.45745,0.0002855,7]
[381027916,1755955843032,-160.0,0.0002855,30]
[381027919,1755955843042,-198.68781,0.0002855,10]
[381027920,1755955843051,-1158.0,0.00028552,2]
[381027922,1755955843060,-151.0,0.0002858,2]
[381027925,1755955843071,-198.0,0.0002858,2]
[381027927,1755955843080,-198.0,0.0002858,2]
[381027929,1755955843090,-500.0,0.0002858,2]
[381027932,1755955843100,-198.0,0.0002858,2]
[381027933,1755955843109,-151.0,0.0002858,2]
[381027935,1755955843118,-500.0,0.00028611,2]
[381027938,1755955843128,-159.73,0.00028615,2]
[381027940,1755955843137,-295.0,0.00028693,2]
[381027941,1755955843146,-168.0,0.00028792,2]
[381027943,1755955843156,-514.0,0.000288,7]
[381027955,1755955843166,-295.0,0.00028803,2]
[381027957,1755955843265,-295.0,0.00028834,2]
[381027959,1755955843275,-168.0,0.00028841,2]
[381027961,1755955843285,-245.0,0.00028854,2]
[381027963,1755955843295,-151.0,0.00028854,2]
[381027965,1755955843304,-1099.87,0.000289,7]
[381027967,1755955843314,-500.0,0.00029055,2]
[381027969,1755955843324,-234.0,0.00029128,2]
[381027971,1755955843333,-198.0,0.00029128,2]
[381027973,1755955843342,-1158.0,0.00029158,7]
[381027975,1755955843351,-206.969,0.00029186,2]
[381027977,1755955843360,-257.299,0.00029186,2]
[381027979,1755955843369,-973.0,0.00029204,2]
[381027981,1755955843378,-637.0,0.00029204,2]
[381027983,1755955843388,-2154.0,0.00029204,2]
[381027985,1755955843397,-408.0,0.00029204,2]
[381027987,1755955843407,-177.066484,0.00029204,7]
[381027989,1755955843416,-177.066484,0.00029204,7]
[381027991,1755955843425,-177.066484,0.00029204,7]
[381027993,1755955843435,-177.066484,0.00029204,7]
[381027995,1755955843444,-2393.984874,0.00029204,7]
[381027997,1755955843453,-500.494229,0.00029204,7]
[381027999,1755955843462,-2393.984874,0.00029204,7]
[381028001,1755955843472,-500.494229,0.00029204,7]
[381028003,1755955843482,-2393.984874,0.00029204,7]
[381028005,1755955843491,-151.0,0.00029204,7]
[381028007,1755955843501,-500.494229,0.00029204,7]
[381028009,1755955843510,-2393.984874,0.00029204,7]
[381028011,1755955843519,-500.494229,0.00029204,7]
[381028012,1755955843529,-151.0,0.00029204,7]
[381028014,1755955843540,-151.0,0.00029204,7]
[381028016,1755955843551,-284.320927,0.00029204,7]
[381028018,1755955843561,-151.0,0.00029204,7]
[381028021,1755955843571,-284.320927,0.00029204,7]
[381028022,1755955843580,-151.0,0.00029204,7]
[381028024,1755955843590,-284.320927,0.00029204,7]
[381028026,1755955843600,-284.320927,0.00029204,7]
[381028028,1755955843610,-400.759768,0.00029204,7]
[381028031,1755955843621,-400.759768,0.00029204,7]
[381028033,1755955843631,-400.759768,0.00029204,7]
[381028035,1755955843641,-400.759768,0.00029204,7]
[381028037,1755955843651,-151.0,0.00029204,7]
[381028039,1755955843660,-151.0,0.00029204,7]
[381028041,1755955843669,-151.0,0.00029204,7]
[381028043,1755955843678,-151.0,0.00029204,7]
[381028045,1755955843688,-162.73261464,0.00029205,30]
[381028047,1755955843697,-1158.0,0.0002922,2]
[381028048,1755955843707,-295.0,0.0002925,2]
[381028051,1755955843716,-2200.0,0.00029272,2]
[381028053,1755955843726,-162.73261464,0.0002937,30]
[381028055,1755955843735,-295.0,0.00029377,2]
[381028056,1755955843745,-221.0329258,0.00029396,11]
[381028058,1755955843754,-15545.0,0.000294,2]
[381028061,1755955843764,-154.943926,0.000294,7]
[381028063,1755955843774,-154.943926,0.000294,7]
[381028065,1755955843784,-658.019203,0.000294,7]
[381028067,1755955843793,-154.943926,0.000294,7]
[381028069,1755955843803,-658.019203,0.000294,7]
[381028070,1755955843813,-154.943926,0.000294,7]
[381028072,1755955843823,-658.019203,0.000294,7]
[381028074,1755955843833,-658.019203,0.000294,7]
[381028076,1755955843844,-202.721479,0.000294,7]
[381028078,1755955843853,-202.721479,0.000294,7]
[381028080,1755955843863,-162.284382,0.000294,7]
[381028082,1755955843872,-202.721479,0.000294,7]
[381028085,1755955843881,-162.284382,0.000294,7]
[381028087,1755955843891,-202.721479,0.000294,7]
[381028089,1755955843900,-162.284382,0.000294,7]
[381028090,1755955843910,-151.0,0.000294,7]
[381028092,1755955843919,-162.284382,0.000294,7]
[381028094,1755955843929,-151.0,0.000294,7]
[381028097,1755955843938,-151.0,0.000294,7]
[381028098,1755955843947,-610.432913,0.000294,7]
[381028101,1755955843957,-610.432913,0.000294,7]
[381028102,1755955843966,-610.432913,0.000294,7]
[381028105,1755955843976,-868.120932,0.000294,7]
[381028106,1755955843985,-610.432913,0.000294,7]
[381028108,1755955843995,-80.65629281,0.000294,7]
[381028135,1755955844239,-787.46463919,0.000294,7]
[381028137,1755955844248,-580.76574974,0.000294,7]
[381028205,1755955844909,-287.93292261,0.00020273,2]
[381028207,1755955844919,-691.163442,0.000268,7]
[381028209,1755955844928,-160.0,0.00026919,2]
[381028211,1755955844937,-215.94678008,0.00026972,2]
[381028213,1755955844946,-160.0,0.00026972,2]
[381028215,1755955844956,-287.35518226,0.000294,7]
[381028217,1755955844965,-868.120932,0.000294,7]
[381028219,1755955844975,-151.0,0.000294,7]
[381028221,1755955844984,-3605.770361,0.000294,7]
[381028223,1755955844994,-151.0,0.000294,7]
[381028225,1755955845003,-3605.770361,0.000294,7]
[381028227,1755955845012,-3605.770361,0.000294,7]
[381028229,1755955845022,-3605.770361,0.000294,7]
[381028231,1755955845031,-151.0,0.000294,7]
[381028233,1755955845041,-151.0,0.000294,7]
[381028235,1755955845050,-151.0,0.000294,7]
[381028237,1755955845060,-151.0,0.000294,7]
[381028239,1755955845069,-207.999342,0.000294,7]
[381028241,1755955845079,-207.999342,0.000294,7]
[381028243,1755955845089,-207.999342,0.000294,7]
[381028245,1755955845098,-207.999342,0.000294,7]
[381028247,1755955845108,-210.36431,0.000294,7]
[381028249,1755955845117,-289.402616,0.000294,7]
[381028251,1755955845126,-289.402616,0.000294,7]
[381028253,1755955845135,-289.402616,0.000294,7]
[381028255,1755955845144,-289.402616,0.000294,7]
[381028257,1755955845154,-194.80245,0.000294,7]
[381028260,1755955845163,-194.80245,0.000294,7]
[381028262,1755955845172,-194.80245,0.000294,7]
[381028264,1755955845182,-194.80245,0.000294,7]
[381028266,1755955845191,-151.0,0.000294,7]
[381028268,1755955845201,-151.0,0.000294,7]
[381028270,1755955845210,-172.916814,0.000294,7]
[381028272,1755955845220,-927.772607,0.000294,7]
[381028274,1755955845229,-151.0,0.000294,7]
[381028276,1755955845238,-927.772607,0.000294,7]
[381028278,1755955845249,-927.772607,0.000294,7]
[381028280,1755955845259,-927.772607,0.000294,7]
[381028282,1755955845271,-181.859024,0.000294,7]
[381028284,1755955845280,-181.859024,0.000294,7]
[381028286,1755955845290,-181.859024,0.000294,7]
[381028288,1755955845299,-181.859024,0.000294,7]
[381028290,1755955845308,-14.48119705,0.00029453,7]
[381028293,1755955845332,-280.51880295,0.00029453,7]
[381028295,1755955845342,-514.0,0.00029454,2]
[381028297,1755955845351,-162.73261464,0.00029507,30]
[381028299,1755955845360,-1629.0,0.00029535,2]
[381028301,1755955845370,-514.0,0.00029559,2]
[381028303,1755955845379,-223.75734513,0.00029589,30]
[381028305,1755955845388,-3649.86475798,0.000296,7]
[381028307,1755955845399,-269.47997502,0.000296,7]
[381028310,1755955845410,-106.735267,0.000296,7]
[381028312,1755955845419,-151.0,0.000296,7]
[381028314,1755955845428,-151.0,0.000296,7]
[381028316,1755955845437,-166.159005,0.000296,7]
[381028318,1755955845447,-166.159005,0.000296,7]
[381028320,1755955845456,-166.159005,0.000296,7]
[381028321,1755955845466,-166.159005,0.000296,7]
[381028323,1755955845476,-151.0,0.000296,7]
[381028325,1755955845485,-151.0,0.000296,7]
[381028327,1755955845495,-151.0,0.000296,7]
[381028329,1755955845505,-288.666736,0.000296,7]
[381028331,1755955845515,-151.0,0.000296,7]
[381028333,1755955845524,-151.0,0.000296,7]
[381028336,1755955845536,-144.6344627,0.000296,7]
[381028409,1755955846243,-691.163442,0.000268,7]
[381028411,1755955846252,-691.163442,0.00026908,7]
[381028413,1755955846262,-691.163442,0.00026908,7]
[381028415,1755955846271,-691.163442,0.0002843,7]
[381028417,1755955846281,-691.163442,0.0002843,7]
[381028419,1755955846290,-6.3655373,0.000296,7]
[381028421,1755955846300,-151.0,0.000296,7]
[381028423,1755955846309,-151.0,0.000296,7]
[381028425,1755955846318,-151.0,0.000296,7]
[381028427,1755955846328,-151.0,0.000296,7]
[381028429,1755955846337,-171.435192,0.000296,7]
[381028430,1755955846347,-171.435192,0.000296,7]
[381028431,1755955846357,-171.435192,0.000296,7]
[381028432,1755955846366,-171.435192,0.000296,7]
[381028433,1755955846375,-805.80050235,0.00029667,2]
[381028434,1755955846385,-162.73261464,0.00029671,30]
[381028435,1755955846394,-168.0,0.00029692,2]
[381028436,1755955846404,-151.0,0.00029722,7]
[381028437,1755955846413,-151.0,0.00029722,7]
[381028438,1755955846423,-151.0,0.00029722,7]
[381028439,1755955846433,-151.0,0.00029722,7]
[381028440,1755955846442,-158.57504,0.00029722,7]
[381028441,1755955846451,-151.0,0.00029722,7]
[381028442,1755955846460,-151.0,0.00029722,7]
[381028443,1755955846470,-151.0,0.00029722,7]
[381028444,1755955846479,-151.0,0.00029722,7]
[381028445,1755955846488,-151.0,0.00029722,7]
[381028446,1755955846498,-151.0,0.00029722,7]
[381028447,1755955846507,-151.0,0.00029722,7]
[381028448,1755955846515,-151.0,0.00029722,7]
[381028449,1755955846525,-151.0,0.00029722,7]
[381028450,1755955846534,-151.0,0.00029722,7]
[381028451,1755955846547,-151.0,0.00029722,7]
[381028452,1755955846557,-246.364195,0.00029722,7]
[381028453,1755955846567,-151.0,0.00029722,2]
[381028454,1755955846578,-500.0,0.00029722,2]
[381028455,1755955846587,-151.0,0.00029722,2]
[381028456,1755955846598,-151.0,0.00029722,2]
[381028457,1755955846609,-194.72792766,0.00029722,2]
[381028459,1755955846618,-300.0,0.00029722,2]
[381028461,1755955846628,-300.0,0.00029722,2]
[381028463,1755955846638,-151.0,0.00029722,2]
[381028465,1755955846648,-151.0,0.00029722,2]
[381028467,1755955846657,-300.0,0.00029722,2]
[381028469,1755955846666,-151.0,0.00029722,2]
[381028471,1755955846675,-300.0,0.00029722,2]
[381028473,1755955846684,-300.0,0.00029722,2]
[381028475,1755955846694,-151.0,0.00029722,2]
[381028477,1755955846703,-300.0,0.00029722,2]
[381028479,1755955846713,-151.0,0.00029722,2]
[381028481,1755955846725,-300.0,0.00029722,2]
[381028483,1755955846734,-151.0,0.00029722,2]
[381028485,1755955846743,-300.0,0.00029722,2]
[381028487,1755955846752,-151.0,0.00029722,2]
[381028489,1755955846761,-300.0,0.00029722,2]
[381028491,1755955846771,-151.0,0.00029722,2]
[381028493,1755955846780,-151.0,0.00029722,2]
[381028495,1755955846789,-2030.296672,0.00029722,2]
[381028497,1755955846798,-300.0,0.00029722,2]
[381028499,1755955846808,-300.0,0.00029722,2]
[381028501,1755955846817,-151.0,0.00029722,2]
[381028503,1755955846827,-300.0,0.00029722,2]
[381028505,1755955846836,-300.0,0.00029722,2]
[381028507,1755955846845,-151.0,0.00029722,2]
[381028509,1755955846854,-151.0,0.00029722,2]
[381028511,1755955846863,-300.0,0.00029722,2]
[381028512,1755955846872,-300.0,0.00029722,2]
[381028514,1755955846881,-151.0,0.00029722,2]
[381028516,1755955846891,-300.0,0.00029722,2]
[381028518,1755955846900,-220.12329846,0.00029722,2]
[381028520,1755955846909,-151.0,0.00029722,2]
[381028523,1755955846919,-151.0,0.00029722,2]
[381028524,1755955846928,-151.0,0.00029722,2]
[381028526,1755955846938,-194.24099703,0.00029722,2]
[381028528,1755955846947,-300.0,0.00029722,2]
[381028530,1755955846956,-151.0,0.00029722,2]
[381028532,1755955846966,-300.0,0.00029722,2]
[381028534,1755955846975,-151.0,0.00029722,2]
[381028536,1755955846985,-250.0,0.00029722,2]
[381028538,1755955846993,-223.19620638,0.00029722,2]
[381028540,1755955847003,-151.0,0.00029722,2]
[381028542,1755955847012,-250.0,0.00029722,2]
[381028544,1755955847021,-151.0,0.00029722,2]
[381028546,1755955847031,-250.0,0.00029722,2]
[381028548,1755955847041,-151.0,0.00029722,2]
[381028550,1755955847050,-250.0,0.00029722,2]
[381028552,1755955847059,-250.0,0.00029722,2]
[381028554,1755955847068,-5742.96528489,0.00029722,2]
[381028557,1755955847081,-312.0667886,0.00029722,2]
[381028994,1755955975962,223.0944701,0.000199,2]
[381028997,1755956054153,170.971599,0.00013699,2]
[381028998,1755956068180,387.632043,0.00019341,2]
[381029001,1755956151660,215.57073069,0.000199,2]
[381029002,1755956326697,208.38503987,0.000199,2]
[381029614,1755956716653,1181.29526253,0.00019961,2]
[381029946,1755956850102,-174.232356,0.00020261,2]
[381029947,1755956850626,-275.28169795,0.00020356,2]
[381029948,1755956850647,-228.81240809,0.00021716,2]
[381029949,1755956850668,-310.56206117,0.00021815,2]
[381029950,1755956850689,-310.56206117,0.00021816,2]
[381029951,1755956850711,-310.56206117,0.00021816,2]
[381029952,1755956850732,-310.56206117,0.00021817,2]
[381029953,1755956850753,-2076.87934119,0.00021817,2]
[381029954,1755956850772,-310.56206117,0.00021817,2]
[381029955,1755956850794,-789.0,0.00021915,2]
[381029956,1755956850819,-1200.0,0.00021916,2]
[381029957,1755956850839,-300.0,0.00021916,2]
[381029958,1755956850860,-2986.44897627,0.00021917,2]
[381029962,1755956990279,170.971599,0.00013699,2]
[381029996,1755957031990,-179.21106301,0.00021884,2]
[381029998,1755957032000,-1817.26942355,0.00021984,2]
[381030000,1755957032009,-228.81240807,0.00021984,2]
[381030002,1755957032018,-1136.16455207,0.00022084,2]
[381030004,1755957032028,-223.38103942,0.0002249,2]
[381030006,1755957032038,-329.35962668,0.00022617,2]
[381030008,1755957032047,-500.0,0.00022617,2]
[381030010,1755957032057,-426.9055883,0.00022643,2]
[381030012,1755957032067,-500.0,0.00022643,2]
[381030014,1755957032077,-500.0,0.00022671,2]
[381030016,1755957032087,-456.90068779,0.00022671,2]
[381030018,1755957032098,-9287.07821455,0.00022672,2]
[381030020,1755957032110,-4314.66277948,0.00022672,2]
[381030022,1755957032121,-29436.60000231,0.00022672,2]
[381030025,1755957032133,-426.5266978,0.00022672,2]
[381030027,1755957032142,-395.06464608,0.00022673,2]
[381030029,1755957032152,-500.0,0.00022673,2]
[381030031,1755957032161,-500.0,0.00022673,2]
[381030033,1755957032171,-500.0,0.00022975,2]
[381030035,1755957032181,-500.0,0.00022975,2]
[381030036,1755957032191,-501.17008923,0.00022975,2]
[381030038,1755957032200,-160.0,0.00023,2]
[381030039,1755957032210,-500.0,0.00023114,2]
[381030040,1755957032219,-215.1305272,0.00023165,2]
[381030041,1755957032229,-172.135094,0.00023294,2]
[381030043,1755957032239,-172.432,0.00023408,3]
[381030044,1755957032248,-847.462,0.00023408,3]
[381030046,1755957032258,-1200.0,0.00023817,2]
[381030048,1755957032267,-223.38103942,0.00024216,2]
[381030049,1755957032277,-200.0,0.00024679,15]
[381030050,1755957032286,-162.63870684,0.00025205,2]
[381030051,1755957032295,-179.66437698,0.00025334,2]
[381030052,1755957032305,-152.527856,0.00025432,3]
[381030065,1755957032426,-376.14580871,0.00025712,2]
[381030067,1755957032437,-160.0,0.00025712,2]
[381030069,1755957032447,-844.50316758,0.00025712,2]
[381030071,1755957032457,-232.37252479,0.00025712,2]
[381030073,1755957032467,-160.0,0.00025712,2]
[381030075,1755957032478,-215.94678008,0.00025728,2]
[381030077,1755957032488,-160.0,0.00025728,2]
[381030079,1755957032498,-160.0,0.00025728,2]
[381030080,1755957032508,-160.0,0.00025728,2]
[381030082,1755957032518,-160.0,0.00025728,2]
[381030085,1755957032528,-217.0334113,0.00025728,2]
[381030087,1755957032537,-529.05847148,0.00025736,2]
[381030089,1755957032547,-718.65750793,0.00025881,2]
[381030090,1755957032556,-223.38103942,0.00025943,4]
[381030092,1755957032566,-500.0,0.00026111,2]
[381030094,1755957032576,-1616.97939284,0.00026429,2]
[381030096,1755957032586,-199.0,0.00026749,20]
[381030099,1755957032598,-2874.63003171,0.00026977,2]
[381030101,1755957032608,-417.15472785,0.00027,7]
[381030102,1755957032618,-376.14580871,0.00027,7]
[381030105,1755957032629,-376.14580871,0.00027,3]
[381030107,1755957032639,-376.14580871,0.00027,7]
[381030109,1755957032648,-170.971599,0.00027397,2]
[381030110,1755957032658,-1817.26942349,0.000274,2]
[381030112,1755957032668,-153.0,0.00027479,2]
[381030114,1755957032678,-153.0,0.00027479,2]
[381030116,1755957032687,-153.0,0.00027479,2]
[381030119,1755957032697,-153.0,0.00027479,2]
[381030121,1755957032707,-1804.32565414,0.00027525,2]
[381030154,1755957038056,-199.0,0.00026749,20]
[381030155,1755957038068,-154.72246964,0.00027525,2]
[381030156,1755957038277,-1064.82945393,0.00027525,2]
[381030157,1755957038289,-1467.73184684,0.00027525,2]
[381030158,1755957038298,-500.0,0.00027595,2]
[381030159,1755957038307,-152.527856,0.00027653,20]
[381030160,1755957038317,-223.38103942,0.00027669,8]
[381030161,1755957038326,-500.0,0.0002768,5]
[381030162,1755957038336,-500.0,0.0002768,5]
[381030163,1755957038345,-500.0,0.0002768,5]
[381030164,1755957038356,-221.54234939,0.0002768,5]
[381030166,1755957038365,-500.0,0.0002768,5]
[381030167,1755957038375,-500.0,0.0002768,5]
[381030168,1755957038384,-500.0,0.0002768,5]
[381030169,1755957038393,-500.0,0.0002768,5]
[381030170,1755957038403,-500.0,0.00027766,2]
[381030171,1755957038412,-417.15472785,0.00028,10]
[381030172,1755957038421,-376.14580871,0.00028,10]
[381030173,1755957038430,-5036.4583159,0.00028073,2]
[381030174,1755957038442,-1431.45925545,0.00028073,2]
[381030176,1755957038452,-500.0,0.00028228,5]
[381030177,1755957038461,-464.7111914,0.00028228,5]
[381030178,1755957038470,-151.0,0.00028306,2]
[381030179,1755957038480,-151.0,0.00028306,2]
[381030180,1755957038489,-151.0,0.00028306,2]
[381030181,1755957038498,-151.0,0.00028306,2]
[381030182,1755957038507,-198.0,0.00028306,2]
[381030183,1755957038517,-151.0,0.00028306,2]